[Event "Titled Tuesday Blitz April 25 Early 2023"]
[White "Andrews, Todd"]
[Black "Wong, Yinn Long"]
[WhiteFideId "2012456"]
[BlackFideId "5707684"]
[WhiteElo "2406"]
[BlackElo "2271"]
[Result "0-1"]
[Round "01"]
[TimeControl "180+2"]
[Date "2023.04.25"]
[WhiteClock "0:00:09"]
[BlackClock "0:00:08"]

1. e4 {[%clk 0:03:00]}  e6 {[%clk 0:02:58]} 2. d4 {[%clk 0:02:59]}  d5 {[%clk 0:02:58]} 3. Nc3 {[%clk 0:02:59]}  Nf6 {[%clk 0:02:57]} 4. e5 {[%clk 0:02:59]}  Nfd7 {[%clk 0:02:58]} 5. Nce2 {[%clk 0:02:58]}  c5 {[%clk 0:02:57]} 6. c3 {[%clk 0:02:59]}  Nc6 {[%clk 0:02:58]} 7. Nf3 {[%clk 0:02:59]}  b5 {[%clk 0:02:50]} 8. a3 {[%clk 0:02:52]}  a5 {[%clk 0:02:45]} 9. h4 {[%clk 0:02:49]}  f6 {[%clk 0:02:29]} 10. Nf4 {[%clk 0:02:45]}  fxe5 {[%clk 0:02:03]} 11. Nxe6 {[%clk 0:02:36]}  Qb6 {[%clk 0:02:03]} 12. Bxb5 {[%clk 0:02:30]}  e4 {[%clk 0:01:51]} 13. Nfg5 {[%clk 0:02:29]}  Na7 {[%clk 0:01:30]} 14. Ba4 {[%clk 0:01:42]}  Ba6 {[%clk 0:01:06]} 15. Bf4 {[%clk 0:01:29]}  Rc8 {[%clk 0:01:02]} 16. Qg4 {[%clk 0:01:20]}  Bb5 {[%clk 0:00:52]} 17. Qf5 {[%clk 0:00:55]}  Nf6 {[%clk 0:00:51]} 18. Bxb5+ {[%clk 0:00:48]}  Nxb5 {[%clk 0:00:51]} 19. Nxg7+ {[%clk 0:00:42]}  Bxg7 {[%clk 0:00:47]} 20. Qxc8+ {[%clk 0:00:42]}  Ke7 {[%clk 0:00:48]} 21. Qf5 {[%clk 0:00:36]}  cxd4 {[%clk 0:00:42]} 22. cxd4 {[%clk 0:00:26]}  Nxd4 {[%clk 0:00:39]} 23. Qe5+ {[%clk 0:00:27]}  Kd7 {[%clk 0:00:39]} 24. O-O {[%clk 0:00:22]}  Re8 {[%clk 0:00:33]} 25. Ne6 {[%clk 0:00:12]}  Nxe6 {[%clk 0:00:24]} 26. Qf5 {[%clk 0:00:13]}  Rf8 {[%clk 0:00:14]} 27. Rfd1 {[%clk 0:00:12]}  Ke7 {[%clk 0:00:09]} 28. Bg5 {[%clk 0:00:11]}  h6 {[%clk 0:00:07]} 29. Bxf6+ {[%clk 0:00:10]}  Rxf6 {[%clk 0:00:08]} 30. Qxd5 {[%clk 0:00:11]}  Qxf2+ {[%clk 0:00:08]} 31. Kh1 {[%clk 0:00:10]}  Qxh4+ {[%clk 0:00:09]} 32. Kg1 {[%clk 0:00:10]}  Qf2+ {[%clk 0:00:10]} 33. Kh1 {[%clk 0:00:10]}  Rf5 {[%clk 0:00:09]} 34. Qd6+ {[%clk 0:00:04]}  Kf6 {[%clk 0:00:10]} 35. Rd5 {[%clk 0:00:03]}  Qh4+ {[%clk 0:00:10]} 36. Kg1 {[%clk 0:00:03]}  Qf2+ {[%clk 0:00:11]} 37. Kh1 {[%clk 0:00:04]}  Rxd5 {[%clk 0:00:10]} 38. Qxd5 {[%clk 0:00:04]}  e3 {[%clk 0:00:06]} 39. Rc1 {[%clk 0:00:02]}  e2 {[%clk 0:00:04]} 40. Qf3+ {[%clk 0:00:03]}  Qxf3 {[%clk 0:00:04]} 41. gxf3 {[%clk 0:00:03]}  Nf4 {[%clk 0:00:04]} 42. Re1 {[%clk 0:00:04]}  Kf5 {[%clk 0:00:04]} 43. Kg1 {[%clk 0:00:04]}  Bxb2 {[%clk 0:00:04]} 44. Kf2 {[%clk 0:00:04]}  Bd4+ {[%clk 0:00:05]} 45. Kg3 {[%clk 0:00:04]}  Bc3 {[%clk 0:00:05]} 46. Kf2 {[%clk 0:00:04]}  Bxe1+ {[%clk 0:00:05]} 47. Kxe1 {[%clk 0:00:05]}  Ke5 {[%clk 0:00:06]} 48. Kf2 {[%clk 0:00:06]}  Kd4 {[%clk 0:00:06]} 49. a4 {[%clk 0:00:06]}  Kd3 {[%clk 0:00:06]} 50. Ke1 {[%clk 0:00:07]}  h5 {[%clk 0:00:07]} 51. Kf2 {[%clk 0:00:07]}  Kd2 {[%clk 0:00:07]} 52. Kg3 {[%clk 0:00:08]}  Nd3 {[%clk 0:00:08]} 53. f4 {[%clk 0:00:08]}  e1=Q+ {[%clk 0:00:08]} 54. Kf3 {[%clk 0:00:09]}  Qe3+ {[%clk 0:00:08]} 55. Kg2 {[%clk 0:00:09]}  Qf2+ {[%clk 0:00:09]} 56. Kh3 {[%clk 0:00:09]}  Nxf4# {[%clk 0:00:08]} 0-1


[Site "https://www.chess.com"]

[Event "Titled Tuesday Blitz April 25 Early 2023"]
[White "Gatterer, Florian"]
[Black "Cherniaiev, Tykhon"]
[WhiteFideId "811688"]
[BlackFideId "14182360"]
[WhiteElo "2221"]
[BlackElo "2450"]
[Result "1/2-1/2"]
[Round "01"]
[TimeControl "180+2"]
[Date "2023.04.25"]
[WhiteClock "0:00:19"]
[BlackClock "0:00:08"]

1. c4 {[%clk 0:03:00]}  e5 {[%clk 0:02:58]} 2. Nc3 {[%clk 0:02:56]}  Nf6 {[%clk 0:02:58]} 3. Nf3 {[%clk 0:02:55]}  Nc6 {[%clk 0:02:57]} 4. a3 {[%clk 0:02:50]}  d5 {[%clk 0:02:57]} 5. cxd5 {[%clk 0:02:49]}  Nxd5 {[%clk 0:02:58]} 6. Qc2 {[%clk 0:02:49]}  Be7 {[%clk 0:02:55]} 7. e3 {[%clk 0:02:49]}  Be6 {[%clk 0:02:55]} 8. Bb5 {[%clk 0:02:48]}  f6 {[%clk 0:02:51]} 9. d4 {[%clk 0:02:45]}  O-O {[%clk 0:02:45]} 10. dxe5 {[%clk 0:02:38]}  Nxe5 {[%clk 0:02:40]} 11. Nxe5 {[%clk 0:02:34]}  fxe5 {[%clk 0:02:41]} 12. Bd3 {[%clk 0:02:32]}  h6 {[%clk 0:02:36]} 13. Nxd5 {[%clk 0:02:32]}  Qxd5 {[%clk 0:02:25]} 14. Be4 {[%clk 0:02:32]}  Qa5+ {[%clk 0:02:02]} 15. Bd2 {[%clk 0:02:31]}  Qb6 {[%clk 0:02:02]} 16. O-O {[%clk 0:02:27]}  Rad8 {[%clk 0:02:01]} 17. Bc3 {[%clk 0:02:27]}  Bd6 {[%clk 0:02:01]} 18. Rad1 {[%clk 0:02:22]}  Kh8 {[%clk 0:02:00]} 19. h3 {[%clk 0:02:17]}  Qb5 {[%clk 0:01:47]} 20. Bd3 {[%clk 0:02:11]}  Qd7 {[%clk 0:01:45]} 21. Be4 {[%clk 0:02:02]}  Qf7 {[%clk 0:01:43]} 22. Qe2 {[%clk 0:01:56]}  Bc4 {[%clk 0:01:30]} 23. Bd3 {[%clk 0:01:55]}  Bb3 {[%clk 0:01:30]} 24. Bc2 {[%clk 0:01:55]}  Bc4 {[%clk 0:01:14]} 25. Bd3 {[%clk 0:01:55]}  Bd5 {[%clk 0:01:12]} 26. Bg6 {[%clk 0:01:38]}  Qxg6 {[%clk 0:01:06]} 27. Rxd5 {[%clk 0:01:37]}  e4 {[%clk 0:01:07]} 28. Rfd1 {[%clk 0:01:27]}  Rf3 {[%clk 0:00:56]} 29. Kf1 {[%clk 0:00:58]}  Rf7 {[%clk 0:00:41]} 30. Qg4 {[%clk 0:00:54]}  Qh7 {[%clk 0:00:36]} 31. Bb4 {[%clk 0:00:52]}  Rdf8 {[%clk 0:00:32]} 32. Bxd6 {[%clk 0:00:48]}  Rxf2+ {[%clk 0:00:31]} 33. Kg1 {[%clk 0:00:48]}  cxd6 {[%clk 0:00:31]} 34. Rxd6 {[%clk 0:00:48]}  Qf5 {[%clk 0:00:19]} 35. Qxf5 {[%clk 0:00:44]}  R8xf5 {[%clk 0:00:20]} 36. R1d2 {[%clk 0:00:42]}  Rf1+ {[%clk 0:00:20]} 37. Kh2 {[%clk 0:00:41]}  R5f2 {[%clk 0:00:19]} 38. Rd8+ {[%clk 0:00:40]}  Kh7 {[%clk 0:00:19]} 39. R8d4 {[%clk 0:00:40]}  Rxd2 {[%clk 0:00:19]} 40. Rxd2 {[%clk 0:00:40]}  Re1 {[%clk 0:00:19]} 41. Rd7 {[%clk 0:00:40]}  b5 {[%clk 0:00:18]} 42. Rxa7 {[%clk 0:00:38]}  Rxe3 {[%clk 0:00:19]} 43. b4 {[%clk 0:00:38]}  Rb3 {[%clk 0:00:17]} 44. Ra5 {[%clk 0:00:37]}  e3 {[%clk 0:00:15]} 45. Rxb5 {[%clk 0:00:38]}  Rxa3 {[%clk 0:00:14]} 46. Re5 {[%clk 0:00:37]}  Rb3 {[%clk 0:00:14]} 47. h4 {[%clk 0:00:36]}  Rxb4 {[%clk 0:00:13]} 48. Rxe3 {[%clk 0:00:35]}  Rxh4+ {[%clk 0:00:13]} 49. Kg3 {[%clk 0:00:36]}  Rh5 {[%clk 0:00:14]} 50. Re7 {[%clk 0:00:36]}  Rg5+ {[%clk 0:00:14]} 51. Kh2 {[%clk 0:00:37]}  Kg6 {[%clk 0:00:14]} 52. Rc7 {[%clk 0:00:36]}  Rf5 {[%clk 0:00:15]} 53. Rc6+ {[%clk 0:00:36]}  Rf6 {[%clk 0:00:15]} 54. Rc7 {[%clk 0:00:37]}  h5 {[%clk 0:00:15]} 55. g3 {[%clk 0:00:36]}  Kh6 {[%clk 0:00:15]} 56. Rd7 {[%clk 0:00:36]}  Ra6 {[%clk 0:00:15]} 57. Rc7 {[%clk 0:00:35]}  g6 {[%clk 0:00:16]} 58. Rd7 {[%clk 0:00:35]}  Ra5 {[%clk 0:00:16]} 59. Rd6 {[%clk 0:00:34]}  Kg5 {[%clk 0:00:15]} 60. Rc6 {[%clk 0:00:34]}  Re5 {[%clk 0:00:14]} 61. Kh3 {[%clk 0:00:34]}  Re1 {[%clk 0:00:13]} 62. Rc5+ {[%clk 0:00:33]}  Kf6 {[%clk 0:00:13]} 63. Rc6+ {[%clk 0:00:33]}  Re6 {[%clk 0:00:14]} 64. Rc5 {[%clk 0:00:33]}  Rd6 {[%clk 0:00:11]} 65. Rb5 {[%clk 0:00:33]}  Rc6 {[%clk 0:00:11]} 66. Ra5 {[%clk 0:00:33]}  Kg7 {[%clk 0:00:11]} 67. Rb5 {[%clk 0:00:33]}  Kh6 {[%clk 0:00:11]} 68. Ra5 {[%clk 0:00:33]}  g5 {[%clk 0:00:11]} 69. Rd5 {[%clk 0:00:29]}  Kg6 {[%clk 0:00:11]} 70. Ra5 {[%clk 0:00:28]}  Rc2 {[%clk 0:00:11]} 71. Ra6+ {[%clk 0:00:26]}  Kg7 {[%clk 0:00:11]} 72. Ra7+ {[%clk 0:00:26]}  Kf6 {[%clk 0:00:12]} 73. Ra6+ {[%clk 0:00:26]}  Kf7 {[%clk 0:00:12]} 74. Ra7+ {[%clk 0:00:26]}  Ke6 {[%clk 0:00:12]} 75. Ra6+ {[%clk 0:00:26]}  Ke7 {[%clk 0:00:12]} 76. Ra7+ {[%clk 0:00:26]}  Kd6 {[%clk 0:00:11]} 77. Ra6+ {[%clk 0:00:25]}  Rc6 {[%clk 0:00:10]} 78. Ra5 {[%clk 0:00:25]}  Rc5 {[%clk 0:00:10]} 79. Ra6+ {[%clk 0:00:25]}  Kd5 {[%clk 0:00:10]} 80. Rh6 {[%clk 0:00:24]}  h4 {[%clk 0:00:04]} 81. gxh4 {[%clk 0:00:23]}  gxh4 {[%clk 0:00:05]} 82. Kxh4 {[%clk 0:00:23]}  Rc1 {[%clk 0:00:05]} 83. Rg6 {[%clk 0:00:22]}  Ke5 {[%clk 0:00:05]} 84. Ra6 {[%clk 0:00:20]}  Kf4 {[%clk 0:00:05]} 85. Ra4+ {[%clk 0:00:20]}  Kf3 {[%clk 0:00:04]} 86. Ra3+ {[%clk 0:00:20]}  Ke4 {[%clk 0:00:04]} 87. Ra4+ {[%clk 0:00:20]}  Kf5 {[%clk 0:00:05]} 88. Ra5+ {[%clk 0:00:20]}  Ke4 {[%clk 0:00:05]} 89. Ra4+ {[%clk 0:00:20]}  Ke5 {[%clk 0:00:06]} 90. Ra5+ {[%clk 0:00:21]}  Kd6 {[%clk 0:00:07]} 91. Ra6+ {[%clk 0:00:21]}  Kc5 {[%clk 0:00:06]} 92. Ra5+ {[%clk 0:00:21]}  Kb4 {[%clk 0:00:07]} 93. Re5 {[%clk 0:00:21]}  Rc4+ {[%clk 0:00:07]} 94. Kg5 {[%clk 0:00:20]}  Rc5 {[%clk 0:00:07]} 95. Rxc5 {[%clk 0:00:19]}  Kxc5 {[%clk 0:00:08]} 1/2-1/2


[Site "https://www.chess.com"]

[Event "Titled Tuesday Blitz April 25 Early 2023"]
[White "Wagner, Dennis"]
[Black "Senft, Sean"]
[WhiteFideId "24650684"]
[BlackFideId "2044960"]
[WhiteElo "2470"]
[BlackElo "1989"]
[Result "1-0"]
[Round "01"]
[TimeControl "180+2"]
[Date "2023.04.25"]
[WhiteClock "0:00:26"]
[BlackClock "0:00:03"]

1. d4 {[%clk 0:02:54]}  d5 {[%clk 0:02:59]} 2. Nf3 {[%clk 0:02:53]}  c6 {[%clk 0:02:55]} 3. Bf4 {[%clk 0:02:46]}  Nf6 {[%clk 0:02:55]} 4. e3 {[%clk 0:02:43]}  Qb6 {[%clk 0:02:55]} 5. Qc1 {[%clk 0:02:40]}  Bf5 {[%clk 0:02:55]} 6. Bd3 {[%clk 0:02:36]}  Bg6 {[%clk 0:02:54]} 7. O-O {[%clk 0:02:35]}  e6 {[%clk 0:02:54]} 8. Ne5 {[%clk 0:02:34]}  Be7 {[%clk 0:02:51]} 9. Nxg6 {[%clk 0:02:33]}  hxg6 {[%clk 0:02:51]} 10. h3 {[%clk 0:02:33]}  c5 {[%clk 0:02:46]} 11. dxc5 {[%clk 0:02:32]}  Qxc5 {[%clk 0:02:35]} 12. c4 {[%clk 0:02:33]}  O-O {[%clk 0:02:24]} 13. a3 {[%clk 0:02:22]}  dxc4 {[%clk 0:02:16]} 14. Qxc4 {[%clk 0:02:19]}  Nc6 {[%clk 0:02:06]} 15. Nc3 {[%clk 0:02:16]}  Qxc4 {[%clk 0:01:59]} 16. Bxc4 {[%clk 0:02:17]}  Rac8 {[%clk 0:01:59]} 17. Be2 {[%clk 0:02:11]}  Rfd8 {[%clk 0:01:57]} 18. Rfd1 {[%clk 0:02:09]}  e5 {[%clk 0:01:23]} 19. Bg5 {[%clk 0:01:58]}  Rxd1+ {[%clk 0:01:20]} 20. Rxd1 {[%clk 0:01:57]}  Rd8 {[%clk 0:01:20]} 21. Rxd8+ {[%clk 0:01:56]}  Nxd8 {[%clk 0:01:08]} 22. Bc4 {[%clk 0:01:53]}  Kf8 {[%clk 0:00:53]} 23. e4 {[%clk 0:01:17]}  Bc5 {[%clk 0:00:47]} 24. Kf1 {[%clk 0:01:15]}  Bd4 {[%clk 0:00:37]} 25. Ke2 {[%clk 0:01:06]}  Bxc3 {[%clk 0:00:36]} 26. bxc3 {[%clk 0:01:06]}  Ke7 {[%clk 0:00:26]} 27. Kd3 {[%clk 0:01:05]}  Kd6 {[%clk 0:00:20]} 28. g4 {[%clk 0:01:04]}  a6 {[%clk 0:00:20]} 29. f3 {[%clk 0:01:05]}  b5 {[%clk 0:00:19]} 30. Bb3 {[%clk 0:01:03]}  Nb7 {[%clk 0:00:19]} 31. Bxf7 {[%clk 0:01:00]}  Nc5+ {[%clk 0:00:19]} 32. Kc2 {[%clk 0:00:58]}  Nfd7 {[%clk 0:00:12]} 33. Bxg6 {[%clk 0:00:58]}  Nb6 {[%clk 0:00:12]} 34. Bf7 {[%clk 0:00:57]}  a5 {[%clk 0:00:08]} 35. Be3 {[%clk 0:00:55]}  Nca4 {[%clk 0:00:05]} 36. h4 {[%clk 0:00:54]}  Nc4 {[%clk 0:00:04]} 37. Bxc4 {[%clk 0:00:53]}  bxc4 {[%clk 0:00:05]} 38. h5 {[%clk 0:00:52]}  Ke6 {[%clk 0:00:04]} 39. g5 {[%clk 0:00:50]}  Kf7 {[%clk 0:00:04]} 40. Bf2 {[%clk 0:00:45]}  Ke6 {[%clk 0:00:04]} 41. Bg1 {[%clk 0:00:43]}  Kf7 {[%clk 0:00:03]} 42. Ba7 {[%clk 0:00:42]}  Ke6 {[%clk 0:00:04]} 43. h6 {[%clk 0:00:25]}  gxh6 {[%clk 0:00:03]} 44. gxh6 {[%clk 0:00:26]}  Kf6 {[%clk 0:00:03]} 45. Bb8 {[%clk 0:00:26]} 1-0


[Site "https://www.chess.com"]

[Event "Titled Tuesday Blitz April 25 Early 2023"]
[White "Alexikov, Alexander"]
[Black "Bilych, Olexiy"]
[WhiteFideId "14103958"]
[BlackFideId "14156504"]
[WhiteElo "2186"]
[BlackElo "2320"]
[Result "0-1"]
[Round "01"]
[TimeControl "180+2"]
[Date "2023.04.25"]
[WhiteClock "0:00:12"]
[BlackClock "0:00:16"]

1. e4 {[%clk 0:02:58]}  c5 {[%clk 0:02:59]} 2. Nf3 {[%clk 0:02:57]}  d6 {[%clk 0:02:59]} 3. d4 {[%clk 0:02:57]}  cxd4 {[%clk 0:02:59]} 4. Nxd4 {[%clk 0:02:57]}  Nf6 {[%clk 0:03:00]} 5. Nc3 {[%clk 0:02:56]}  a6 {[%clk 0:03:00]} 6. Be2 {[%clk 0:02:55]}  e5 {[%clk 0:02:59]} 7. Nb3 {[%clk 0:02:55]}  Be7 {[%clk 0:02:58]} 8. O-O {[%clk 0:02:54]}  O-O {[%clk 0:02:58]} 9. Be3 {[%clk 0:02:54]}  Be6 {[%clk 0:02:55]} 10. Bf3 {[%clk 0:02:52]}  Nbd7 {[%clk 0:02:45]} 11. a4 {[%clk 0:02:51]}  Rc8 {[%clk 0:02:42]} 12. Re1 {[%clk 0:02:47]}  Nb6 {[%clk 0:02:35]} 13. Nd2 {[%clk 0:02:39]}  Nc4 {[%clk 0:02:19]} 14. Nxc4 {[%clk 0:02:38]}  Rxc4 {[%clk 0:02:17]} 15. Qd2 {[%clk 0:02:18]}  Qc7 {[%clk 0:01:57]} 16. a5 {[%clk 0:02:16]}  Rc8 {[%clk 0:01:49]} 17. h3 {[%clk 0:01:58]}  h6 {[%clk 0:01:47]} 18. Bb6 {[%clk 0:01:51]}  Qc6 {[%clk 0:01:38]} 19. Rad1 {[%clk 0:01:49]}  Kf8 {[%clk 0:01:09]} 20. Kh2 {[%clk 0:01:45]}  Nd7 {[%clk 0:01:04]} 21. Be3 {[%clk 0:01:41]}  Qc7 {[%clk 0:00:56]} 22. Ra1 {[%clk 0:01:34]}  Qc6 {[%clk 0:00:22]} 23. Re2 {[%clk 0:01:22]}  Rb4 {[%clk 0:00:19]} 24. Nd5 {[%clk 0:01:20]}  Rxb2 {[%clk 0:00:18]} 25. Nxe7 {[%clk 0:01:15]}  Kxe7 {[%clk 0:00:19]} 26. Rc1 {[%clk 0:01:10]}  Nf6 {[%clk 0:00:16]} 27. Bb6 {[%clk 0:00:51]}  Qc3 {[%clk 0:00:14]} 28. Qxc3 {[%clk 0:00:50]}  Rxc3 {[%clk 0:00:14]} 29. Rd2 {[%clk 0:00:49]}  Rc6 {[%clk 0:00:11]} 30. Kg1 {[%clk 0:00:45]}  Nd7 {[%clk 0:00:12]} 31. Be3 {[%clk 0:00:43]}  Ra2 {[%clk 0:00:12]} 32. c3 {[%clk 0:00:40]}  Rxa5 {[%clk 0:00:12]} 33. Rb2 {[%clk 0:00:39]}  b5 {[%clk 0:00:12]} 34. Bd2 {[%clk 0:00:37]}  Ra3 {[%clk 0:00:12]} 35. Rcb1 {[%clk 0:00:36]}  Nb6 {[%clk 0:00:13]} 36. Rb4 {[%clk 0:00:35]}  Nc4 {[%clk 0:00:12]} 37. Be1 {[%clk 0:00:34]}  g6 {[%clk 0:00:12]} 38. h4 {[%clk 0:00:32]}  h5 {[%clk 0:00:13]} 39. g3 {[%clk 0:00:32]}  Ra2 {[%clk 0:00:12]} 40. Kg2 {[%clk 0:00:28]}  Nd2 {[%clk 0:00:12]} 41. Bxd2 {[%clk 0:00:24]}  Rxd2 {[%clk 0:00:13]} 42. R1b2 {[%clk 0:00:21]}  Rxb2 {[%clk 0:00:13]} 43. Rxb2 {[%clk 0:00:21]}  Rxc3 {[%clk 0:00:14]} 44. Rd2 {[%clk 0:00:20]}  Bc4 {[%clk 0:00:13]} 45. Bd1 {[%clk 0:00:19]}  a5 {[%clk 0:00:13]} 46. Rb2 {[%clk 0:00:19]}  a4 {[%clk 0:00:13]} 47. Rb1 {[%clk 0:00:18]}  a3 {[%clk 0:00:14]} 48. Ra1 {[%clk 0:00:17]}  a2 {[%clk 0:00:14]} 49. Bf3 {[%clk 0:00:16]}  b4 {[%clk 0:00:14]} 50. Bd1 {[%clk 0:00:15]}  b3 {[%clk 0:00:15]} 51. Bxb3 {[%clk 0:00:12]}  Bxb3 {[%clk 0:00:16]} 0-1


[Site "https://www.chess.com"]

[Event "Titled Tuesday Blitz April 25 Early 2023"]
[White "Travadon, Loic"]
[Black "Spata, German"]
[WhiteFideId "26092131"]
[BlackFideId "113026"]
[WhiteElo "2405"]
[BlackElo "2238"]
[Result "0-1"]
[Round "01"]
[TimeControl "180+2"]
[Date "2023.04.25"]
[WhiteClock "0:00:01"]
[BlackClock "0:00:08"]

1. d4 {[%clk 0:03:00]}  Nf6 {[%clk 0:02:56]} 2. Nf3 {[%clk 0:02:59]}  g6 {[%clk 0:02:54]} 3. Nc3 {[%clk 0:02:51]}  d5 {[%clk 0:02:52]} 4. Bg5 {[%clk 0:02:50]}  Bg7 {[%clk 0:02:51]} 5. e3 {[%clk 0:02:45]}  c6 {[%clk 0:02:48]} 6. Be2 {[%clk 0:02:44]}  O-O {[%clk 0:02:36]} 7. Ne5 {[%clk 0:02:44]}  Nbd7 {[%clk 0:02:31]} 8. f4 {[%clk 0:02:43]}  Nxe5 {[%clk 0:02:22]} 9. fxe5 {[%clk 0:02:44]}  Nd7 {[%clk 0:02:20]} 10. h4 {[%clk 0:02:41]}  f6 {[%clk 0:02:17]} 11. exf6 {[%clk 0:02:32]}  exf6 {[%clk 0:02:17]} 12. Bf4 {[%clk 0:02:32]}  Qe7 {[%clk 0:02:16]} 13. Qd2 {[%clk 0:02:29]}  Re8 {[%clk 0:02:10]} 14. Nd1 {[%clk 0:01:57]}  g5 {[%clk 0:01:59]} 15. hxg5 {[%clk 0:01:56]}  fxg5 {[%clk 0:01:59]} 16. Bg3 {[%clk 0:01:54]}  Nf6 {[%clk 0:01:55]} 17. Bd3 {[%clk 0:01:49]}  Ne4 {[%clk 0:01:52]} 18. Bxe4 {[%clk 0:01:49]}  Qxe4 {[%clk 0:01:53]} 19. O-O {[%clk 0:01:31]}  Bf5 {[%clk 0:01:36]} 20. Rc1 {[%clk 0:01:28]}  Bg6 {[%clk 0:01:33]} 21. c4 {[%clk 0:01:25]}  Qd3 {[%clk 0:01:10]} 22. Rf2 {[%clk 0:01:17]}  dxc4 {[%clk 0:01:03]} 23. Rc3 {[%clk 0:01:16]}  Qxd2 {[%clk 0:00:58]} 24. Rxd2 {[%clk 0:01:17]}  b5 {[%clk 0:00:58]} 25. b3 {[%clk 0:01:15]}  Bf7 {[%clk 0:00:43]} 26. bxc4 {[%clk 0:01:12]}  Bxc4 {[%clk 0:00:43]} 27. Nb2 {[%clk 0:01:12]}  Bd5 {[%clk 0:00:43]} 28. Bd6 {[%clk 0:01:07]}  Re4 {[%clk 0:00:41]} 29. Bc5 {[%clk 0:01:06]}  Rae8 {[%clk 0:00:40]} 30. Nd1 {[%clk 0:01:05]}  a5 {[%clk 0:00:38]} 31. Ra3 {[%clk 0:01:04]}  a4 {[%clk 0:00:39]} 32. Rc3 {[%clk 0:01:04]}  h5 {[%clk 0:00:38]} 33. a3 {[%clk 0:01:04]}  g4 {[%clk 0:00:38]} 34. g3 {[%clk 0:00:57]}  Bh6 {[%clk 0:00:38]} 35. Re2 {[%clk 0:00:52]}  Bb3 {[%clk 0:00:37]} 36. Nf2 {[%clk 0:00:38]}  Rxe3 {[%clk 0:00:35]} 37. Rexe3 {[%clk 0:00:24]}  Rxe3 {[%clk 0:00:36]} 38. Rc1 {[%clk 0:00:18]}  Rxg3+ {[%clk 0:00:36]} 39. Kh2 {[%clk 0:00:18]}  Bxc1 {[%clk 0:00:29]} 40. Kxg3 {[%clk 0:00:18]}  Kf7 {[%clk 0:00:27]} 41. Ne4 {[%clk 0:00:17]}  Bd5 {[%clk 0:00:25]} 42. Nd6+ {[%clk 0:00:16]}  Ke6 {[%clk 0:00:24]} 43. Kh4 {[%clk 0:00:16]}  Bf4 {[%clk 0:00:23]} 44. Ne8 {[%clk 0:00:15]}  g3 {[%clk 0:00:21]} 45. Ng7+ {[%clk 0:00:16]}  Kf7 {[%clk 0:00:21]} 46. Nxh5 {[%clk 0:00:16]}  Bd2 {[%clk 0:00:18]} 47. Nxg3 {[%clk 0:00:15]}  Ke6 {[%clk 0:00:17]} 48. Ne2 {[%clk 0:00:15]}  Kf5 {[%clk 0:00:14]} 49. Kg3 {[%clk 0:00:15]}  Ke4 {[%clk 0:00:14]} 50. Kf2 {[%clk 0:00:15]}  Kd3 {[%clk 0:00:15]} 51. Ng3 {[%clk 0:00:10]}  Bc3 {[%clk 0:00:13]} 52. Nf5 {[%clk 0:00:10]}  Be4 {[%clk 0:00:12]} 53. Nd6 {[%clk 0:00:04]}  Bxd4+ {[%clk 0:00:11]} 54. Bxd4 {[%clk 0:00:05]}  Kxd4 {[%clk 0:00:12]} 55. Ke2 {[%clk 0:00:05]}  Bd5 {[%clk 0:00:11]} 56. Kd2 {[%clk 0:00:05]}  Bc4 {[%clk 0:00:10]} 57. Kc2 {[%clk 0:00:04]}  c5 {[%clk 0:00:11]} 58. Kb2 {[%clk 0:00:03]}  b4 {[%clk 0:00:10]} 59. Nf5+ {[%clk 0:00:03]}  Kd3 {[%clk 0:00:08]} 60. Nd6 {[%clk 0:00:04]}  Ba6 {[%clk 0:00:08]} 61. Nf5 {[%clk 0:00:01]}  b3 {[%clk 0:00:08]} 62. Nd6 {[%clk 0:00:01]}  c4 {[%clk 0:00:08]} 0-1


[Site "https://www.chess.com"]

[Event "Titled Tuesday Blitz April 25 Early 2023"]
[White "Fontaine, Quentin"]
[Black "Prohaszka, Peter"]
[WhiteFideId "230804"]
[BlackFideId "726265"]
[WhiteElo "2237"]
[BlackElo "2626"]
[Result "1-0"]
[Round "01"]
[TimeControl "180+2"]
[Date "2023.04.25"]
[WhiteClock "0:00:27"]
[BlackClock "0:00:02"]

1. e4 {[%clk 0:03:00]}  c6 {[%clk 0:02:59]} 2. d4 {[%clk 0:02:57]}  d5 {[%clk 0:03:00]} 3. exd5 {[%clk 0:02:58]}  cxd5 {[%clk 0:03:00]} 4. Nf3 {[%clk 0:02:59]}  Nc6 {[%clk 0:03:00]} 5. Ne5 {[%clk 0:02:58]}  g6 {[%clk 0:02:52]} 6. c3 {[%clk 0:02:42]}  Bg7 {[%clk 0:02:51]} 7. Bf4 {[%clk 0:02:34]}  Nf6 {[%clk 0:02:45]} 8. Bd3 {[%clk 0:02:34]}  Bf5 {[%clk 0:02:44]} 9. Bxf5 {[%clk 0:02:31]}  gxf5 {[%clk 0:02:45]} 10. O-O {[%clk 0:02:30]}  O-O {[%clk 0:02:40]} 11. Re1 {[%clk 0:02:29]}  Ne4 {[%clk 0:02:36]} 12. Nd3 {[%clk 0:02:27]}  e6 {[%clk 0:02:23]} 13. Nd2 {[%clk 0:02:20]}  Kh8 {[%clk 0:02:19]} 14. Re3 {[%clk 0:02:19]}  Ne7 {[%clk 0:02:10]} 15. Rh3 {[%clk 0:02:15]}  Nf6 {[%clk 0:02:06]} 16. Be5 {[%clk 0:02:07]}  Ng6 {[%clk 0:02:02]} 17. Bxf6 {[%clk 0:01:50]}  Qxf6 {[%clk 0:02:02]} 18. Qh5 {[%clk 0:01:50]}  h6 {[%clk 0:02:02]} 19. Nf3 {[%clk 0:01:51]}  Rad8 {[%clk 0:01:39]} 20. Re1 {[%clk 0:01:50]}  Rg8 {[%clk 0:01:20]} 21. Nfe5 {[%clk 0:01:48]}  Bf8 {[%clk 0:01:17]} 22. Ree3 {[%clk 0:01:37]}  Kh7 {[%clk 0:00:41]} 23. Reg3 {[%clk 0:01:36]}  Nh8 {[%clk 0:00:38]} 24. Nf4 {[%clk 0:01:25]}  a5 {[%clk 0:00:29]} 25. Rxg8 {[%clk 0:01:21]}  Kxg8 {[%clk 0:00:30]} 26. Rg3+ {[%clk 0:01:21]}  Bg7 {[%clk 0:00:26]} 27. Qd1 {[%clk 0:00:59]}  b5 {[%clk 0:00:21]} 28. Nh5 {[%clk 0:00:57]}  Qh4 {[%clk 0:00:11]} 29. Rxg7+ {[%clk 0:00:48]}  Kf8 {[%clk 0:00:11]} 30. g3 {[%clk 0:00:40]}  Qe7 {[%clk 0:00:04]} 31. Rh7 {[%clk 0:00:37]}  Kg8 {[%clk 0:00:02]} 32. Rxh6 {[%clk 0:00:35]}  Qg5 {[%clk 0:00:03]} 33. Rxh8+ {[%clk 0:00:31]}  Kxh8 {[%clk 0:00:01]} 34. Nxf7+ {[%clk 0:00:31]}  Kh7 {[%clk 0:00:01]} 35. Nxg5+ {[%clk 0:00:30]}  Kg6 {[%clk 0:00:02]} 36. h4 {[%clk 0:00:28]}  Re8 {[%clk 0:00:02]} 37. Nf4+ {[%clk 0:00:27]}  Kf6 {[%clk 0:00:02]} 38. Qh5 {[%clk 0:00:28]}  Ke7 {[%clk 0:00:02]} 39. Qf7+ {[%clk 0:00:27]}  Kd6 {[%clk 0:00:01]} 40. Qxe8 {[%clk 0:00:27]}  b4 {[%clk 0:00:02]} 41. Qxe6+ {[%clk 0:00:26]}  Kc7 {[%clk 0:00:02]} 42. Nxd5+ {[%clk 0:00:27]}  Kb7 {[%clk 0:00:02]} 43. Qb6+ {[%clk 0:00:27]} 1-0


[Site "https://www.chess.com"]